fUSD/lending_fUSD_20251220
["ID","MTS","AMOUNT","RATE_DAILY","PERIOD"]
[399247948,1766203840994,-500.0,0.00013773,2]
[399247950,1766203841004,-174.74495914,0.00013773,2]
[399247951,1766203841013,-500.0,0.00013773,2]
[399247952,1766203841023,-500.0,0.00013773,2]
[399247953,1766203841033,-500.0,0.00013773,2]
[399247954,1766203841042,-500.0,0.00013773,2]
[399247955,1766203841052,-500.0,0.00013773,2]
[399247956,1766203841061,-500.0,0.00013773,2]
[399247957,1766203841070,-500.0,0.00013773,2]
[399247958,1766203841080,-168.59999571,0.00013773,2]
[399247959,1766203841090,-500.50034776,0.00013773,2]
[399247960,1766203841099,-500.0,0.00013773,2]
[399247961,1766203841108,-500.0,0.00013773,2]
[399247962,1766203841118,-500.0,0.00013773,2]
[399247963,1766203841127,-500.0,0.00013773,2]
[399247964,1766203841136,-500.0,0.00013773,2]
[399247965,1766203841146,-165.7973653,0.00013773,2]
[399247966,1766203841155,-536.13646338,0.00013773,2]
[399247968,1766203841165,-500.0,0.00013773,2]
[399247970,1766203841174,-500.0,0.00013773,2]
[399247972,1766203841183,-500.0,0.00013773,2]
[399247974,1766203841193,-500.0,0.00013773,2]
[399247976,1766203841203,-179.50290541,0.00013773,2]
[399247978,1766203841212,-160.23016142,0.00013773,2]
[399247980,1766203841221,-500.0,0.00013773,2]
[399247982,1766203841230,-500.0,0.00013773,2]
[399247984,1766203841240,-500.0,0.00013773,2]
[399247986,1766203841249,-216.27337885,0.00013773,2]
[399247987,1766203841259,-315.42381846,0.00013773,2]
[399247988,1766203841270,-500.0,0.00013773,2]
[399247989,1766203841280,-165.31243658,0.00013773,2]
[399247990,1766203841290,-500.0,0.00013773,2]
[399247991,1766203841299,-201.65516925,0.00013773,2]
[399247992,1766203841310,-892.68085504,0.00013804,2]
[399247993,1766203841321,-34045.73346549,0.00013831,2]
[399247994,1766203841330,-166.66,0.00013836,2]
[399247995,1766203841340,-2049.65,0.00013913,2]
[399247996,1766203841349,-166.66,0.00013973,2]
[399247997,1766203841359,-33482.2614,0.00014021,2]
[399247998,1766203841368,-1000.0,0.00014021,2]
[399247999,1766203841378,-598.10211643,0.00014031,2]
[399248000,1766203841387,-452.8,0.00014107,2]
[399248001,1766203841396,-166.66,0.0001411,2]
[399248002,1766203841406,-151.69,0.0001412,2]
[399248003,1766203841415,-150.26,0.0001412,2]
[399248004,1766203841424,-500.0,0.0001412,2]
[399248005,1766203841434,-543.19991777,0.0001412,2]
[399248006,1766203841444,-500.0,0.0001412,2]
[399248007,1766203841453,-564.35975952,0.0001412,2]
[399248008,1766203841463,-500.0,0.0001412,2]
[399248009,1766203841472,-500.0,0.0001412,2]
[399248010,1766203841482,-500.0,0.0001412,2]
[399248011,1766203841491,-500.0,0.00014187,2]
[399248012,1766203841500,-200.0,0.00014187,2]
[399248013,1766203841510,-200.0,0.00014187,2]
[399248014,1766203841519,-2049.65,0.00014187,2]
[399248015,1766203841528,-151.0,0.00014233,2]
[399248016,1766203841538,-200.0,0.00014236,2]
[399248017,1766203841547,-207.4,0.00014236,2]
[399248018,1766203841557,-215.0738,0.00014236,2]
[399248019,1766203841566,-223.0315306,0.00014236,2]
[399248020,1766203841575,-231.28369723,0.00014236,2]
[399248021,1766203841585,-239.84119403,0.00014236,2]
[399248022,1766203841594,-220.0,0.00014236,2]
[399248023,1766203841604,-248.71531821,0.00014236,2]
[399248024,1766203841614,-220.0,0.00014236,2]
[399248025,1766203841623,-257.91778498,0.00014236,2]
[399248026,1766203841632,-220.0,0.00014236,2]
[399248027,1766203841642,-5000.0,0.00014236,2]
[399248028,1766203841651,-500.0,0.00014236,2]
[399248029,1766203841661,-220.0,0.00014236,2]
[399248030,1766203841670,-5000.0,0.00014236,2]
[399248031,1766203841680,-267.46074303,0.00014236,2]
[399248032,1766203841690,-1199.0,0.00014236,2]
[399248033,1766203841699,-500.0,0.00014236,2]
[399248034,1766203841709,-500.0,0.00014236,2]
[399248035,1766203841718,-220.0,0.00014236,2]
[399248036,1766203841727,-277.35679052,0.00014236,2]
[399248037,1766203841737,-5000.0,0.00014236,2]
[399248038,1766203841747,-500.0,0.00014236,2]
[399248039,1766203841759,-220.0,0.00014236,2]
[399248040,1766203841768,-500.0,0.00014236,2]
[399248041,1766203841778,-5000.0,0.00014236,2]
[399248042,1766203841787,-500.0,0.00014236,2]
[399248043,1766203841798,-252.4499311,0.00014236,2]
[399248044,1766203841807,-500.0,0.00014236,2]
[399248045,1766203841817,-5000.0,0.00014236,2]
[399248046,1766203841829,-500.0,0.00014236,2]
[399248047,1766203841838,-500.0,0.00014236,2]
[399248048,1766203841847,-620.0,0.00014236,2]
[399248049,1766203841857,-5000.0,0.00014236,2]
[399248050,1766203841867,-500.0,0.00014236,2]
[399248051,1766203841876,-5000.0,0.00014236,2]
[399248052,1766203841887,-500.0,0.00014236,2]
[399248053,1766203841896,-500.0,0.00014236,2]
[399248054,1766203841907,-5000.0,0.00014236,2]
[399248055,1766203841917,-500.0,0.00014236,2]
[399248056,1766203841927,-5000.0,0.00014236,2]
[399248057,1766203841938,-500.0,0.00014236,2]
[399248058,1766203841952,-500.0,0.00014236,2]
[399248059,1766203841962,-5000.0,0.00014236,2]
[399248060,1766203841973,-174.94180424,0.00014236,2]
[399248061,1766203841984,-500.0,0.00014236,2]
[399248062,1766203841994,-500.0,0.00014236,2]
[399248063,1766203842004,-5000.0,0.00014236,2]
[399248064,1766203842014,-500.0,0.00014236,2]
[399248065,1766203842023,-500.0,0.00014236,2]
[399248066,1766203842036,-574.12855637,0.00014236,2]
[399248067,1766203842045,-500.0,0.00014236,2]
[399248068,1766203842055,-500.0,0.00014236,2]
[399248069,1766203842064,-500.0,0.00014236,2]
[399248070,1766203842073,-151.0,0.00014236,2]
[399248071,1766203842082,-151.0,0.00014236,2]
[399248072,1766203842092,-500.0,0.00014236,2]
[399248073,1766203842102,-500.0,0.00014236,2]
[399248074,1766203842113,-500.0,0.00014236,2]
[399248075,1766203842124,-500.0,0.00014236,2]
[399248076,1766203842134,-250.0,0.00014236,2]
[399248077,1766203842144,-500.0,0.00014236,2]
[399248078,1766203842153,-250.0,0.00014236,2]
[399248079,1766203842162,-500.0,0.00014236,2]
[399248080,1766203842172,-1000.0,0.00014236,2]
[399248081,1766203842181,-250.0,0.00014236,2]
[399248082,1766203842190,-500.0,0.00014236,2]
[399248083,1766203842200,-1000.0,0.00014236,2]
[399248084,1766203842209,-250.0,0.00014236,2]
[399248085,1766203842219,-500.0,0.00014236,2]
[399248086,1766203842229,-1000.0,0.00014236,2]
[399248087,1766203842238,-500.0,0.00014236,2]
[399248088,1766203842248,-1000.0,0.00014236,2]
[399248089,1766203842501,-250.0,0.00014236,2]
[399248090,1766203842512,-250.0,0.00014236,2]
[399248091,1766203842522,-500.0,0.00014236,2]
[399248092,1766203842531,-1000.0,0.00014236,2]
[399248093,1766203842541,-250.0,0.00014236,2]
[399248094,1766203842552,-250.0,0.00014236,2]
[399248095,1766203842561,-500.0,0.00014236,2]
[399248096,1766203842571,-1000.0,0.00014236,2]
[399248097,1766203842582,-1000.0,0.00014236,2]
[399248098,1766203842591,-250.0,0.00014236,2]
[399248099,1766203842600,-173.95994129,0.00014236,2]
[399248100,1766203842610,-1000.0,0.00014236,2]
[399248101,1766203842620,-250.0,0.00014236,2]
[399248102,1766203842630,-686.66093114,0.00014236,2]
[399248103,1766203842639,-250.0,0.00014236,2]
[399248104,1766203842649,-250.0,0.00014236,2]
[399248105,1766203842659,-250.0,0.00014236,2]
[399248106,1766203842669,-9552.16786547,0.00014236,2]
[399248107,1766203842679,-151.49542101,0.00014236,2]
[399248108,1766203842689,-1037.0,0.00014236,2]
[399248109,1766203842699,-500.0,0.00014236,2]
[399248110,1766203842708,-592.95411986,0.00014236,2]
[399248111,1766203842719,-500.0,0.00014236,2]
[399248112,1766203842728,-500.0,0.00014236,2]
[399248113,1766203842739,-153.78508436,0.00014236,2]
[399248114,1766203842750,-500.0,0.00014236,2]
[399248115,1766203842761,-500.0,0.00014236,2]
[399248116,1766203842770,-500.0,0.00014236,2]
[399248117,1766203842779,-500.0,0.00014236,2]
[399248118,1766203842788,-500.0,0.00014236,2]
[399248119,1766203842798,-500.0,0.00014236,2]
[399248120,1766203842808,-500.0,0.00014236,2]
[399248121,1766203842817,-500.0,0.00014236,2]
[399248122,1766203842826,-300.0,0.00014236,2]
[399248123,1766203842835,-578.20924308,0.00014236,2]
[399248124,1766203842844,-2000.0,0.00014236,2]
[399248125,1766203842854,-2000.0,0.00014236,2]
[399248126,1766203842863,-2000.0,0.00014236,2]
[399248127,1766203842873,-2000.0,0.00014236,2]
[399248128,1766203842882,-2000.0,0.00014236,2]
[399248129,1766203842891,-2000.0,0.00014236,2]
[399248130,1766203842900,-2000.0,0.00014236,2]
[399248131,1766203842911,-2000.0,0.00014236,2]
[399248132,1766203842920,-2000.0,0.00014236,2]
[399248133,1766203842930,-2000.0,0.00014236,2]
[399248134,1766203842939,-2000.0,0.00014236,2]
[399248135,1766203842949,-166.66,0.00014247,2]
[399248136,1766203842958,-151.0,0.00014287,2]
[399248137,1766203842967,-151.0,0.00014287,2]
[399248138,1766203842979,-151.0,0.0001429,2]
[399248139,1766203842989,-9905.5980765,0.00014291,2]
[399248140,1766203843000,-500.0,0.00014298,2]
[399248141,1766203843009,-500.0,0.00014298,2]
[399248142,1766203843018,-500.0,0.00014298,2]
[399248143,1766203843028,-507.33450795,0.00014298,2]
[399248144,1766203843037,-500.0,0.00014298,2]
[399248145,1766203843046,-500.0,0.00014298,2]
[399248146,1766203843056,-500.0,0.00014298,2]
[399248147,1766203843065,-500.0,0.00014298,2]
[399248148,1766203843075,-500.0,0.00014298,2]
[399248149,1766203843085,-500.0,0.00014298,2]
[399248150,1766203843094,-500.0,0.00014298,2]
[399248151,1766203843104,-208.16009032,0.00014321,2]
[399248152,1766203843115,-1000.78461254,0.00014321,2]
[399248153,1766203843124,-572.75082077,0.00014321,2]
[399248154,1766203843135,-1135.18911943,0.00014321,2]
[399248155,1766203843145,-1001.90897722,0.00014321,2]
[399248156,1766203843155,-535.09556247,0.00014321,2]
[399248158,1766203843166,-1000.0,0.00014321,2]
[399248159,1766203843175,-1000.0,0.00014321,2]
[399248160,1766203843185,-500.48342927,0.00014321,2]
[399248161,1766203843194,-1000.0,0.00014321,2]
[399248162,1766203843203,-1000.0,0.00014321,2]
[399248163,1766203843212,-1000.0,0.00014321,2]
[399248164,1766203843221,-1000.0,0.00014321,2]
[399248165,1766203843231,-594.53896978,0.00014321,2]
[399248166,1766203843241,-483.93215772,0.00014321,2]
[399248167,1766203843251,-1000.0,0.00014321,2]
[399248168,1766203843262,-1002.93994495,0.00014321,2]
[399248169,1766203843273,-1000.0,0.00014321,2]
[399248170,1766203843282,-1000.0,0.00014321,2]
[399248171,1766203843293,-1000.0,0.00014321,2]
[399248172,1766203843304,-1000.0,0.00014321,2]
[399248173,1766203843314,-1000.0,0.00014321,2]
[399248174,1766203843324,-1000.0,0.00014321,2]
[399248175,1766203843335,-500.31513524,0.00014321,2]
[399248176,1766203843346,-1000.0,0.00014321,2]
[399248177,1766203843356,-34045.73346549,0.00014342,2]
[399248178,1766203843366,-851.5140941,0.00014346,2]
[399248179,1766203843375,-166.66,0.00014384,2]
[399248180,1766203843384,-2049.65,0.00014461,2]
[399248181,1766203843393,-433.0,0.00014621,2]
[399248182,1766203843402,-200.0,0.00014629,2]
[399248183,1766203843411,-224.61,0.00014654,2]
[399248184,1766203843420,-3240.0,0.00014671,2]
[399248185,1766203843429,-500.0,0.00014716,2]
[399248186,1766203843438,-500.0,0.00014735,2]
[399248188,1766203843448,-200.0,0.00014735,2]
[399248190,1766203843458,-200.0,0.00014735,2]
[399248192,1766203843467,-2049.65,0.00014735,2]
[399248194,1766203843476,-595.37131296,0.00014784,2]
[399248195,1766203843485,-151.0,0.00014784,2]
[399248196,1766203843494,-1075.369,0.00014784,2]
[399248197,1766203843503,-452.8,0.00014813,2]
[399248198,1766203843512,-34045.73346549,0.00014854,2]
[399248199,1766203843521,-500.0,0.00014867,2]
[399248200,1766203843530,-500.0,0.00014867,2]
[399248201,1766203843539,-500.0,0.00014867,2]
[399248202,1766203843548,-500.0,0.00014867,2]
[399248203,1766203843558,-500.0,0.00014867,2]
[399248204,1766203843567,-1500.0,0.00014868,2]
[399248205,1766203843577,-1500.0,0.00014868,2]
[399248206,1766203843587,-1503.97714891,0.00014868,2]
[399248207,1766203843596,-1500.0,0.00014868,2]
[399248208,1766203843605,-1001.91769362,0.00014868,2]
[399248209,1766203843614,-1500.0,0.00014868,2]
[399248210,1766203843625,-365.94030489,0.00014868,2]
[399248211,1766203843635,-1501.51415398,0.00014868,2]
[399248212,1766203843644,-1001.58945381,0.00014868,2]
[399248213,1766203843653,-502.20443143,0.00014868,2]
[399248214,1766203843662,-1501.18432329,0.00014868,2]
[399248215,1766203843672,-1500.0,0.00014868,2]
[399248216,1766203843681,-1502.00400434,0.00014868,2]
[399248217,1766203843690,-1500.0,0.00014868,2]
[399248218,1766203843700,-1600.0,0.00014944,2]
[399248219,1766203843709,-2049.65,0.00015009,2]
[399248220,1766203843718,-900.0,0.00015068,2]
[399248221,1766203843727,-500.0,0.00015079,2]
[399248222,1766203843736,-214.74412357,0.00015079,2]
[399248223,1766203843746,-500.0,0.00015079,2]
[399248224,1766203843758,-500.0,0.00015079,2]
[399248225,1766203843768,-500.81759049,0.00015079,2]
[399248226,1766203843777,-505.36356381,0.00015079,2]
[399248227,1766203843787,-500.0,0.00015079,2]
[399248228,1766203843797,-500.0,0.00015079,2]
[399248229,1766203843806,-500.0,0.00015081,2]
[399248230,1766203843816,-500.0,0.00015081,2]
[399248231,1766203843827,-500.0,0.00015081,2]
[399248232,1766203843836,-500.0,0.00015081,2]
[399248233,1766203843845,-500.0,0.00015081,2]
[399248234,1766203843854,-500.0,0.00015081,2]
[399248235,1766203843863,-487.95660004,0.00015081,2]
[399248236,1766203843872,-500.0,0.00015081,2]
[399248237,1766203843881,-500.0,0.00015081,2]
[399248238,1766203843891,-500.0,0.00015081,2]
[399248239,1766203843900,-500.0,0.00015081,2]
[399248240,1766203843910,-500.0,0.00015081,2]
[399248241,1766203843919,-500.0,0.00015081,2]
[399248242,1766203843928,-512.32849253,0.00015081,2]
[399248243,1766203843938,-500.0,0.00015081,2]
[399248244,1766203843948,-500.0,0.00015081,2]
[399248245,1766203843958,-500.0,0.00015081,2]
[399248246,1766203843967,-512.34192822,0.00015081,2]
[399248247,1766203843977,-500.0,0.00015091,2]
[399248248,1766203843988,-500.0,0.00015091,2]
[399248249,1766203843997,-500.0,0.00015151,2]
[399248250,1766203844006,-207.4,0.00015282,2]
[399248251,1766203844015,-500.0,0.00015283,2]
[399248252,1766203844024,-200.0,0.00015283,2]
[399248254,1766203844034,-200.0,0.00015283,2]
[399248256,1766203844044,-2049.65,0.00015283,2]
[399248257,1766203844054,-158.48329942,0.00015288,2]
[399248258,1766203844063,-155.64705311,0.00015288,2]
[399248259,1766203844075,-160.33063992,0.00015288,2]
[399248260,1766203844085,-150.0,0.00015288,2]
[399248261,1766203844094,-151.72084113,0.00015288,2]
[399248262,1766203844103,-156.76422926,0.00015288,2]
[399248263,1766203844112,-157.75435091,0.00015288,2]
[399248264,1766203844121,-150.82546103,0.00015288,2]
[399248265,1766203844130,-151.68546767,0.00015288,2]
[399248266,1766203844139,-152.70737667,0.00015288,2]
[399248267,1766203844148,-152.11986511,0.00015288,2]
[399248268,1766203844157,-152.94375339,0.00015288,2]
[399248269,1766203844166,-155.96693599,0.00015288,2]
[399248270,1766203844175,-390.27278713,0.00015316,2]
[399248271,1766203844184,-617.40005154,0.00015332,2]
[399248272,1766203844194,-34045.73346549,0.00015365,2]
[399248273,1766203844203,-500.0,0.00015416,2]
[399248274,1766203844212,-500.0,0.00015416,2]
[399248275,1766203844222,-500.0,0.00015416,2]
[399248276,1766203844231,-2000.0,0.00015416,2]
[399248277,1766203844241,-1188.04388907,0.00015416,2]
[399248278,1766203844250,-1501.47727649,0.00015416,2]
[399248279,1766203844259,-2000.0,0.00015416,2]
[399248280,1766203844269,-2002.17420355,0.00015416,2]
[399248281,1766203844278,-1503.12423045,0.00015416,2]
[399248282,1766203844287,-452.8,0.00015518,2]
[399248283,1766203844296,-2049.65,0.00015557,2]
[399248284,1766203844305,-153.69901864,0.00015605,2]
[399248285,1766203844314,-311.1,0.00015605,2]
[399248286,1766203844325,-150.0,0.00015627,2]
[399248287,1766203844334,-500.0,0.00015699,2]
[399248288,1766203844343,-500.0,0.00015699,2]
[399248289,1766203844352,-224.61,0.00015781,2]
[399248290,1766203844362,-250.0,0.00015797,2]
[399248291,1766203844371,-500.0,0.00015831,2]
[399248292,1766203844381,-200.0,0.00015831,2]
[399248293,1766203844390,-200.0,0.00015831,2]
[399248294,1766203844399,-2049.65,0.00015831,2]
[399248295,1766203844408,-34045.73346549,0.00015877,2]
[399248296,1766203844417,-640.24385345,0.0001588,2]
[399248297,1766203844426,-2500.0,0.00015964,2]
[399248298,1766203844435,-2500.0,0.00015964,2]
[399248299,1766203844444,-150.0,0.00015967,2]
[399248300,1766203844454,-160.47,0.00016043,2]
[399248301,1766203844463,-295.48,0.00016045,2]
[399248302,1766203844473,-502.0,0.00016055,2]
[399248303,1766203844482,-1000.0,0.000161,2]
[399248304,1766203844491,-2049.65,0.00016105,2]
[399248305,1766203844501,-390.27278712,0.00016108,2]
[399248306,1766203844510,-10972.56,0.00016116,2]
[399248307,1766203844519,-19999.99,0.00016116,2]
[399248308,1766203844528,-452.8,0.00016223,2]
[399248309,1766203844537,-500.0,0.000163,2]
[399248310,1766203844546,-500.0,0.000163,2]
[399248311,1766203844555,-500.0,0.000163,2]
[399248312,1766203844565,-500.0,0.000163,2]
[399248313,1766203844574,-500.33069287,0.000163,2]
[399248314,1766203844583,-162.24077786,0.000163,2]
[399248315,1766203844592,-500.0,0.000163,2]
[399248316,1766203844601,-500.59670517,0.000163,2]
[399248317,1766203844610,-500.0,0.000163,2]
[399248318,1766203844619,-500.0,0.000163,2]
[399248319,1766203844628,-500.0,0.000163,2]
[399248320,1766203844637,-500.0,0.000163,2]
[399248321,1766203844647,-162.03877535,0.000163,2]
[399248322,1766203844656,-500.0,0.000163,2]
[399248323,1766203844665,-500.0,0.000163,2]
[399248324,1766203844675,-500.5161197,0.000163,2]
[399248325,1766203844684,-500.5692733,0.000163,2]
[399248326,1766203844693,-500.19600128,0.000163,2]
[399248327,1766203844702,-500.4308882,0.000163,2]
[399248328,1766203844711,-500.0,0.000163,2]
[399248329,1766203844721,-334.5464899,0.000163,2]
[399248330,1766203844730,-500.0,0.000163,2]
[399248331,1766203844740,-555.87900727,0.000163,2]
[399248332,1766203844753,-330.6916765,0.000163,2]
[399248333,1766203844763,-500.0,0.000163,2]
[399248334,1766203844773,-452.09330567,0.000163,2]
[399248335,1766203844783,-500.44010865,0.000163,2]
[399248336,1766203844845,-500.0,0.000163,2]
[399248337,1766203844855,-500.0,0.000163,2]
[399248338,1766203844864,-500.37407939,0.000163,2]
[399248339,1766203844873,-500.0,0.000163,2]
[399248340,1766203844882,-570.20028222,0.000163,2]
[399248341,1766203844891,-162.35722153,0.000163,2]
[399248342,1766203844900,-500.48687625,0.000163,2]
[399248343,1766203844909,-333.44713486,0.000163,2]
[399248344,1766203844918,-500.0,0.000163,2]
[399248345,1766203844930,-177.2862913,0.000163,2]
[399248346,1766203844940,-500.21661931,0.000163,2]
[399248347,1766203844950,-500.0,0.000163,2]
[399248348,1766203844959,-590.13268338,0.000163,2]
[399248349,1766203844968,-500.0,0.000163,2]
[399248350,1766203844977,-500.0,0.000163,2]
[399248351,1766203844985,-518.77690272,0.000163,2]
[399248352,1766203844997,-543.08632529,0.000163,2]
[399248353,1766203845007,-500.29716194,0.000163,2]
[399248354,1766203845016,-500.0,0.000163,2]
[399248355,1766203845027,-168.09419939,0.000163,2]
[399248356,1766203845036,-500.30081252,0.000163,2]
[399248357,1766203845046,-500.0,0.000163,2]
[399248358,1766203845056,-500.0,0.000163,2]
[399248359,1766203845065,-426.51211002,0.000163,2]
[399248360,1766203845075,-500.0,0.000163,2]
[399248361,1766203845084,-500.0,0.000163,2]
[399248362,1766203845092,-500.34670783,0.000163,2]
[399248363,1766203845101,-500.45922425,0.000163,2]
[399248364,1766203845110,-344.64845159,0.000163,2]
[399248365,1766203845119,-500.0,0.000163,2]
[399248366,1766203845128,-516.37835686,0.000163,2]
[399248367,1766203845137,-500.36669311,0.000163,2]
[399248368,1766203845146,-168.56959317,0.000163,2]
[399248369,1766203845155,-220.27121476,0.000163,2]
[399248370,1766203845163,-500.0,0.000163,2]
[399248371,1766203845172,-500.0,0.000163,2]
[399248372,1766203845181,-468.55909228,0.000163,2]
[399248373,1766203845190,-500.0,0.000163,2]
[399248374,1766203845201,-500.0,0.000163,2]
[399248375,1766203845210,-166.91561833,0.000163,2]
[399248376,1766203845221,-500.30832876,0.000163,2]
[399248377,1766203845230,-500.0,0.000163,2]
[399248378,1766203845240,-500.0,0.000163,2]
[399248379,1766203845249,-500.0,0.000163,2]
[399248380,1766203845259,-500.0,0.000163,2]
[399248381,1766203845269,-500.0,0.000163,2]
[399248382,1766203845278,-161.07996631,0.000163,2]
[399248383,1766203845288,-500.0,0.000163,2]
[399248384,1766203845297,-500.0,0.000163,2]
[399248385,1766203845306,-500.16141079,0.000163,2]
[399248386,1766203845315,-500.34860131,0.000163,2]
[399248387,1766203845324,-159.43095819,0.000163,2]
[399248388,1766203845333,-500.0,0.000163,2]
[399248389,1766203845343,-523.00588269,0.000163,2]
[399248390,1766203845352,-150.0,0.00016307,2]
[399248391,1766203845362,-500.0,0.00016379,2]
[399248392,1766203845371,-200.0,0.00016379,2]
[399248393,1766203845381,-200.0,0.00016379,2]
[399248394,1766203845391,-2049.65,0.00016379,2]
[399248395,1766203845400,-34045.73346549,0.00016388,2]
[399248396,1766203845410,-228.0,0.000164,2]
[399248397,1766203845419,-319.0,0.000164,2]
[399248398,1766203845431,-182.0,0.000164,2]
[399248399,1766203845442,-183.63284637,0.000164,2]
[399248400,1766203845451,-1000.0,0.000164,2]
[399248401,1766203845461,-663.93287602,0.00016428,2]
[399248402,1766203845470,-500.0,0.00016437,2]
[399248403,1766203845479,-500.0,0.00016437,2]
[399248404,1766203845488,-500.0,0.00016437,2]
[399248405,1766203845499,-500.0,0.00016437,2]
[399248406,1766203845509,-500.0,0.00016438,2]
[399248407,1766203845518,-500.0,0.00016438,2]
[399248408,1766203845528,-500.0,0.00016438,2]
[399248409,1766203845537,-500.0,0.00016438,2]
[399248410,1766203845547,-500.0,0.00016438,2]
[399248411,1766203845558,-500.0,0.00016438,2]
[399248412,1766203845567,-500.0,0.00016438,2]
[399248413,1766203845577,-500.0,0.00016438,2]
[399248414,1766203845586,-500.0,0.00016438,2]
[399248415,1766203845596,-500.0,0.00016438,2]
[399248416,1766203845605,-500.0,0.00016438,2]
[399248417,1766203845613,-500.0,0.00016438,2]
[399248418,1766203845623,-500.0,0.00016438,2]
[399248419,1766203845632,-500.0,0.00016438,2]
[399248420,1766203845641,-500.0,0.00016438,2]
[399248421,1766203845650,-500.0,0.00016438,2]
[399248422,1766203845659,-500.0,0.00016438,2]
[399248423,1766203845668,-500.0,0.00016438,2]
[399248424,1766203845677,-500.0,0.00016438,2]
[399248425,1766203845687,-500.0,0.00016438,2]
[399248426,1766203845697,-500.0,0.00016438,2]
[399248427,1766203845706,-500.0,0.00016438,2]
[399248428,1766203845715,-500.0,0.00016438,2]
[399248429,1766203845724,-500.0,0.00016438,2]
[399248430,1766203845735,-500.0,0.00016438,2]
[399248431,1766203845744,-500.0,0.00016438,2]
[399248432,1766203845759,-500.0,0.00016438,2]
[399248433,1766203845769,-317.07626326,0.00016438,2]
[399248434,1766203845779,-500.0,0.00016438,2]
[399248435,1766203845791,-500.0,0.00016438,2]
[399248436,1766203845802,-500.0,0.00016438,2]
[399248437,1766203845812,-500.0,0.00016438,2]
[399248438,1766203845822,-500.0,0.00016438,2]
[399248439,1766203845832,-500.0,0.00016438,2]
[399248440,1766203845842,-500.0,0.00016438,2]
[399248441,1766203845852,-500.0,0.00016438,2]
[399248442,1766203845863,-500.0,0.00016438,2]
[399248443,1766203845873,-500.0,0.00016438,2]
[399248444,1766203845882,-500.0,0.00016438,2]
[399248445,1766203845891,-500.0,0.00016438,2]
[399248446,1766203845901,-500.0,0.00016438,2]
[399248447,1766203845910,-500.0,0.00016438,2]
[399248448,1766203845919,-500.0,0.00016438,2]
[399248449,1766203845929,-500.0,0.00016438,2]
[399248450,1766203845938,-500.0,0.00016438,2]
[399248451,1766203845946,-500.0,0.00016438,2]
[399248452,1766203845955,-500.0,0.00016438,2]
[399248453,1766203845964,-500.0,0.00016438,2]
[399248454,1766203845974,-500.0,0.00016438,2]
[399248455,1766203845983,-500.0,0.00016438,2]
[399248456,1766203845992,-500.0,0.00016438,2]
[399248457,1766203846001,-500.0,0.00016438,2]
[399248458,1766203846010,-500.0,0.00016438,2]
[399248459,1766203846019,-500.0,0.00016438,2]
[399248460,1766203846028,-500.0,0.00016438,2]
[399248461,1766203846038,-500.0,0.00016438,2]
[399248462,1766203846048,-500.0,0.00016438,2]
[399248463,1766203846057,-500.0,0.00016438,2]
[399248464,1766203846066,-500.0,0.00016438,2]
[399248465,1766203846075,-500.0,0.00016438,2]